fUST/lending_fUST_20250513
["ID","MTS","AMOUNT","RATE_DAILY","PERIOD"]
[360915690,1747144233325,-500.0,0.00013673,2]
[360915692,1747144233334,-500.0,0.00013673,2]
[360915694,1747144233344,-500.38043803,0.00013673,2]
[360915696,1747144233353,-503.27433683,0.00013673,2]
[360915698,1747144233363,-500.0,0.00013673,2]
[360915700,1747144233373,-500.0,0.00013673,2]
[360915702,1747144233382,-531.89740536,0.00013673,2]
[360915704,1747144233392,-500.0,0.00013673,2]
[360915706,1747144233401,-500.0,0.00013673,2]
[360915707,1747144233410,-500.0,0.00013673,2]
[360915709,1747144233420,-500.0,0.00013673,2]
[360915711,1747144233429,-500.0,0.00013673,2]
[360915713,1747144233438,-500.40907426,0.00013673,2]
[360915715,1747144233448,-500.0,0.00013673,2]
[360915717,1747144233457,-500.0,0.00013673,2]
[360915719,1747144233467,-501.69490524,0.00013673,2]
[360915721,1747144233476,-500.8467201,0.00013673,2]
[360915723,1747144233485,-500.0,0.00013673,2]
[360915725,1747144233495,-500.0,0.00013673,2]
[360915727,1747144233505,-500.0,0.00013673,2]
[360915729,1747144233514,-500.86707672,0.00013673,2]
[360915731,1747144233524,-500.0,0.00013673,2]
[360915733,1747144233534,-500.0,0.00013673,2]
[360915735,1747144233544,-500.0,0.00013673,2]
[360915737,1747144233553,-500.0,0.00013673,2]
[360915739,1747144233563,-500.0,0.00013673,2]
[360915741,1747144233572,-500.0,0.00013673,2]
[360915744,1747144233582,-503.83807161,0.00013673,2]
[360915746,1747144233604,-503.10778995,0.00013673,2]
[360915748,1747144233614,-410.06298432,0.00013673,2]
[360915750,1747144233625,-503.70606045,0.00013673,2]
[360915752,1747144233634,-500.0,0.00013673,2]
[360915754,1747144233644,-501.38687748,0.00013673,2]
[360915756,1747144233654,-501.03186973,0.00013673,2]
[360915758,1747144233664,-478.06439461,0.00013673,2]
[360915760,1747144233675,-500.0,0.00013673,2]
[360915762,1747144233684,-500.0,0.00013673,2]
[360915764,1747144233694,-500.0,0.00013673,2]
[360915766,1747144233704,-503.18132367,0.00013673,2]
[360915768,1747144233713,-501.05069217,0.00013673,2]
[360915770,1747144233723,-400.0,0.00013698,2]
[360915772,1747144233733,-400.0,0.00013698,2]
[360915774,1747144233743,-400.0,0.00013698,2]
[360915776,1747144233753,-400.0,0.00013698,2]
[360915778,1747144233764,-200.07935363,0.00013698,2]
[360915780,1747144233774,-400.0,0.00013698,2]
[360915782,1747144233784,-400.0,0.00013698,2]
[360915784,1747144233794,-400.0,0.00013698,2]
[360915786,1747144233804,-358.0,0.00013698,2]
[360915788,1747144233814,-400.0,0.00013698,2]
[360915790,1747144233824,-151.0,0.00013698,2]
[360915792,1747144233833,-151.0,0.00013698,2]
[360915794,1747144233843,-208.113875,0.00013698,2]
[360915796,1747144233853,-400.0,0.00013698,2]
[360915798,1747144233863,-385.12348697,0.00013698,2]
[360915799,1747144233874,-400.0,0.00013698,2]
[360915800,1747144233884,-221.32490323,0.00013698,2]
[360915801,1747144233894,-400.0,0.00013698,2]
[360915802,1747144233904,-400.0,0.00013698,2]
[360915803,1747144233914,-702.93,0.00013698,2]
[360915804,1747144233924,-400.0,0.00013698,2]
[360915805,1747144233935,-400.0,0.00013698,2]
[360915806,1747144233945,-400.0,0.00013698,2]
[360915807,1747144233955,-400.0,0.00013698,2]
[360915808,1747144233964,-472.48,0.00013698,2]
[360915809,1747144233974,-400.0,0.00013698,2]
[360915810,1747144233984,-400.0,0.00013698,2]
[360915811,1747144233994,-400.0,0.00013698,2]
[360915812,1747144234003,-440.021043,0.00013698,2]
[360915813,1747144234013,-440.021043,0.00013698,2]
[360915814,1747144234024,-440.021043,0.00013698,2]
[360915815,1747144234034,-400.0,0.00013698,2]
[360915816,1747144234044,-440.021043,0.00013698,2]
[360915817,1747144234055,-440.021043,0.00013698,2]
[360915818,1747144234066,-440.021043,0.00013698,2]
[360915819,1747144234076,-440.021043,0.00013698,2]
[360915820,1747144234086,-440.021043,0.00013698,2]
[360915821,1747144234095,-400.0,0.00013698,2]
[360915822,1747144234109,-440.021043,0.00013698,2]
[360915823,1747144234120,-440.021043,0.00013698,2]
[360915824,1747144234131,-400.0,0.00013698,2]
[360915825,1747144234142,-440.021043,0.00013698,2]
[360915826,1747144234156,-440.021043,0.00013698,2]
[360915827,1747144234166,-440.021043,0.00013698,2]
[360915829,1747144234175,-440.021043,0.00013698,2]
[360915831,1747144234186,-400.0,0.00013698,2]
[360915833,1747144234195,-400.0,0.00013698,2]
[360915835,1747144234205,-400.0,0.00013698,2]
[360915838,1747144234220,-695.75,0.00013698,2]
[360915840,1747144234232,-400.0,0.00013698,2]
[360915842,1747144234242,-400.0,0.00013698,2]
[360915844,1747144234253,-400.0,0.00013698,2]
[360915846,1747144234263,-400.0,0.00013698,2]
[360915848,1747144234273,-460.34,0.00013698,2]
[360915850,1747144234284,-400.0,0.00013698,2]
[360915852,1747144234294,-400.0,0.00013698,2]
[360915854,1747144234304,-1474.58,0.00013698,2]
[360915856,1747144234314,-400.0,0.00013698,2]
[360915858,1747144234324,-402.25958688,0.00013698,2]
[360915860,1747144234334,-473.17,0.00013698,2]
[360915862,1747144234345,-400.0,0.00013698,2]
[360915864,1747144234355,-400.0,0.00013698,2]
[360915866,1747144234365,-400.0,0.00013698,2]
[360915868,1747144234377,-644.39,0.00013698,2]
[360915870,1747144234387,-400.0,0.00013698,2]
[360915872,1747144234397,-400.0,0.00013698,2]
[360915874,1747144234409,-200.0,0.00013698,2]
[360915876,1747144234419,-673.9,0.00013698,2]
[360915878,1747144234430,-400.0,0.00013698,2]
[360915881,1747144234440,-400.0,0.00013698,2]
[360915883,1747144234451,-561.75,0.00013698,2]
[360915885,1747144234461,-341.50570074,0.00013698,2]
[360915887,1747144234471,-400.0,0.00013698,2]
[360915889,1747144234482,-555.66,0.00013698,2]
[360915891,1747144234491,-400.0,0.00013698,2]
[360915893,1747144234501,-400.0,0.00013698,2]
[360915895,1747144234511,-400.0,0.00013698,2]
[360915897,1747144234521,-763.78,0.00013698,2]
[360915899,1747144234531,-400.0,0.00013698,2]
[360915901,1747144234541,-400.0,0.00013698,2]
[360915903,1747144234552,-400.0,0.00013698,2]
[360915905,1747144234561,-400.0,0.00013698,2]
[360915907,1747144234571,-400.0,0.00013698,2]
[360915909,1747144234582,-400.0,0.00013698,2]
[360915911,1747144234591,-400.0,0.00013698,2]
[360915913,1747144234601,-400.0,0.00013698,2]
[360915915,1747144234611,-400.0,0.00013698,2]
[360915917,1747144234621,-400.0,0.00013698,2]
[360915919,1747144234632,-206.42513144,0.00013698,2]
[360915921,1747144234641,-543.42,0.00013698,2]
[360915923,1747144234658,-400.0,0.00013698,2]
[360915925,1747144234668,-720.23,0.00013698,2]
[360915927,1747144234678,-400.0,0.00013698,2]
[360915930,1747144234688,-400.0,0.00013698,2]
[360915932,1747144234699,-400.0,0.00013698,2]
[360915934,1747144234710,-400.0,0.00013698,2]
[360915936,1747144234719,-400.0,0.00013698,2]
[360915938,1747144234729,-400.0,0.00013698,2]
[360915940,1747144234740,-301.74819044,0.00013698,2]
[360915942,1747144234750,-400.0,0.00013698,2]
[360915944,1747144234759,-400.0,0.00013698,2]
[360915946,1747144234769,-400.0,0.00013698,2]
[360915948,1747144234780,-400.0,0.00013698,2]
[360915950,1747144234790,-702.94,0.00013698,2]
[360915952,1747144234799,-400.0,0.00013698,2]
[360915954,1747144234809,-1265.62,0.00013698,2]
[360915956,1747144234819,-400.0,0.00013698,2]
[360915958,1747144234829,-435.77,0.00013698,2]
[360915960,1747144234839,-400.0,0.00013698,2]
[360915962,1747144234849,-400.0,0.00013698,2]
[360915964,1747144234861,-400.0,0.00013698,2]
[360915966,1747144234871,-181.89869859,0.00013698,2]
[360915968,1747144234883,-400.0,0.00013698,2]
[360915970,1747144234893,-400.0,0.00013698,2]
[360915971,1747144234902,-400.0,0.00013698,2]
[360915972,1747144234911,-400.0,0.00013698,2]
[360915973,1747144234921,-507.56,0.00013698,2]
[360915975,1747144234930,-400.0,0.00013698,2]
[360915976,1747144234940,-150.22177002,0.00013698,2]
[360915977,1747144234949,-2294.63,0.00013698,2]
[360915978,1747144234958,-400.0,0.00013698,2]
[360915979,1747144234968,-400.0,0.00013698,2]
[360915980,1747144234977,-400.0,0.00013698,2]
[360915981,1747144234987,-588.96,0.00013698,2]
[360915982,1747144234997,-1014.1,0.00013698,2]
[360915983,1747144235007,-400.0,0.00013698,2]
[360915984,1747144235016,-400.0,0.00013698,2]
[360915985,1747144235026,-520.47,0.00013698,2]
[360915986,1747144235036,-400.0,0.00013698,2]
[360915987,1747144235045,-950.31,0.00013698,2]
[360915988,1747144235056,-400.0,0.00013698,2]
[360915989,1747144235066,-479.6,0.00013698,2]
[360915990,1747144235076,-400.0,0.00013698,2]
[360915991,1747144235085,-400.0,0.00013698,2]
[360915992,1747144235095,-400.0,0.00013698,2]
[360915993,1747144235104,-400.0,0.00013698,2]
[360915994,1747144235114,-400.0,0.00013698,2]
[360915995,1747144235125,-713.63,0.00013698,2]
[360915996,1747144235134,-400.0,0.00013698,2]
[360915997,1747144235145,-400.0,0.00013698,2]
[360915998,1747144235157,-400.0,0.00013698,2]
[360916000,1747144235166,-403.17366168,0.00013698,2]
[360916002,1747144235176,-400.10738778,0.00013698,2]
[360916004,1747144235186,-201.82120906,0.00013698,2]
[360916005,1747144235196,-300.0,0.00013698,2]
[360916007,1747144235205,-400.0,0.00013698,2]
[360916008,1747144235215,-400.0,0.00013698,2]
[360916009,1747144235225,-400.0,0.00013698,2]
[360916010,1747144235235,-469.73,0.00013698,2]
[360916011,1747144235245,-594.45,0.00013698,2]
[360916012,1747144235255,-400.0,0.00013698,2]
[360916013,1747144235617,-1126.26,0.00013698,2]
[360916014,1747144235626,-400.0,0.00013698,2]
[360916015,1747144235646,-400.0,0.00013698,2]
[360916016,1747144235658,-689.77,0.00013698,2]
[360916017,1747144235668,-516.69819978,0.00013698,2]
[360916018,1747144235678,-400.0,0.00013698,2]
[360916019,1747144235688,-400.0,0.00013698,2]
[360916020,1747144235697,-400.0,0.00013698,2]
[360916021,1747144235707,-400.0,0.00013698,2]
[360916022,1747144235717,-400.0,0.00013698,2]
[360916023,1747144235726,-525.09,0.00013698,2]
[360916024,1747144235736,-817.61,0.00013698,2]
[360916025,1747144235747,-400.0,0.00013698,2]
[360916026,1747144235757,-400.0,0.00013698,2]
[360916027,1747144235766,-400.0,0.00013698,2]
[360916028,1747144235777,-1025.11,0.00013698,2]
[360916029,1747144235787,-400.0,0.00013698,2]
[360916030,1747144235796,-400.0,0.00013698,2]
[360916031,1747144235806,-400.0,0.00013698,2]
[360916032,1747144235816,-455.04,0.00013698,2]
[360916033,1747144235826,-400.0,0.00013698,2]
[360916034,1747144235839,-400.0,0.00013698,2]
[360916035,1747144235848,-400.0,0.00013698,2]
[360916036,1747144235858,-432.71,0.00013698,2]
[360916037,1747144235868,-400.0,0.00013698,2]
[360916038,1747144235879,-600.58,0.00013698,2]
[360916039,1747144235889,-400.0,0.00013698,2]
[360916040,1747144235898,-400.0,0.00013698,2]
[360916041,1747144235908,-400.0,0.00013698,2]
[360916042,1747144235918,-400.0,0.00013698,2]
[360916043,1747144235928,-713.5,0.00013698,2]
[360916044,1747144235937,-400.0,0.00013698,2]
[360916045,1747144235947,-400.0,0.00013698,2]
[360916046,1747144235957,-400.0,0.00013698,2]
[360916047,1747144235966,-400.0,0.00013698,2]
[360916048,1747144235976,-400.0,0.00013698,2]
[360916049,1747144235986,-599.64,0.00013698,2]
[360916050,1747144235995,-400.0,0.00013698,2]
[360916051,1747144236005,-400.0,0.00013698,2]
[360916052,1747144236015,-400.0,0.00013698,2]
[360916053,1747144236025,-400.0,0.00013698,2]
[360916054,1747144236035,-400.0,0.00013698,2]
[360916055,1747144236044,-883.08,0.00013698,2]
[360916056,1747144236054,-400.0,0.00013698,2]
[360916057,1747144236064,-400.0,0.00013698,2]
[360916058,1747144236073,-400.0,0.00013698,2]
[360916059,1747144236083,-636.6,0.00013698,2]
[360916060,1747144236093,-400.0,0.00013698,2]
[360916061,1747144236103,-505.21,0.00013698,2]
[360916062,1747144236113,-646.4,0.00013698,2]
[360916063,1747144236123,-400.0,0.00013698,2]
[360916064,1747144236134,-1729.45,0.00013698,2]
[360916065,1747144236144,-400.0,0.00013698,2]
[360916066,1747144236156,-473.1,0.00013698,2]
[360916067,1747144236166,-715.29,0.00013698,2]
[360916068,1747144236177,-400.0,0.00013698,2]
[360916069,1747144236187,-400.0,0.00013698,2]
[360916070,1747144236198,-400.0,0.00013698,2]
[360916071,1747144236208,-388.10969617,0.00013698,2]
[360916072,1747144236219,-400.0,0.00013698,2]
[360916073,1747144236230,-508.82700723,0.00013698,2]
[360916074,1747144236240,-1723.56,0.00013698,2]
[360916075,1747144236250,-400.0,0.00013698,2]
[360916076,1747144236261,-400.0,0.00013698,2]
[360916077,1747144236271,-400.0,0.00013698,2]
[360916078,1747144236281,-400.64,0.00013698,2]
[360916079,1747144236291,-400.0,0.00013698,2]
[360916080,1747144236301,-409.40216688,0.00013698,2]
[360916081,1747144236311,-400.0,0.00013698,2]
[360916082,1747144236321,-427.69,0.00013698,2]
[360916083,1747144236331,-400.0,0.00013698,2]
[360916084,1747144236341,-400.0,0.00013698,2]
[360916085,1747144236351,-436.36605906,0.00013698,2]
[360916086,1747144236361,-1054.81,0.00013698,2]
[360916087,1747144236372,-952.21,0.00013698,2]
[360916088,1747144236383,-400.0,0.00013698,2]
[360916089,1747144236393,-825.4,0.00013698,2]
[360916090,1747144236404,-725.44,0.00013698,2]
[360916091,1747144236414,-440.72,0.00013698,2]
[360916092,1747144236424,-400.0,0.00013698,2]
[360916093,1747144236434,-400.0,0.00013698,2]
[360916094,1747144236443,-474.21,0.00013698,2]
[360916095,1747144236455,-403.11888108,0.00013698,2]
[360916096,1747144236467,-701.11,0.00013698,2]
[360916097,1747144236477,-618.76,0.00013698,2]
[360916098,1747144236489,-400.0,0.00013698,2]
[360916099,1747144236502,-1263.49,0.00013698,2]
[360916100,1747144236512,-405.13371192,0.00013698,2]
[360916101,1747144236522,-400.0,0.00013698,2]
[360916102,1747144236532,-400.0,0.00013698,2]
[360916103,1747144236542,-400.0,0.00013698,2]
[360916104,1747144236552,-400.0,0.00013698,2]
[360916105,1747144236561,-400.0,0.00013698,2]
[360916106,1747144236572,-400.0,0.00013698,2]
[360916107,1747144236583,-400.0,0.00013698,2]
[360916108,1747144236596,-400.0,0.00013698,2]
[360916109,1747144236606,-1493.39,0.00013698,2]
[360916110,1747144236616,-657.62,0.00013698,2]
[360916111,1747144236627,-1426.42,0.00013698,2]
[360916112,1747144236636,-345.18436272,0.00013698,2]
[360916113,1747144236646,-400.0,0.00013698,2]
[360916114,1747144236656,-400.0,0.00013698,2]
[360916115,1747144236666,-400.0,0.00013698,2]
[360916116,1747144236676,-407.43,0.00013698,2]
[360916117,1747144236685,-440.48,0.00013698,2]
[360916118,1747144236695,-1233.33,0.00013698,2]
[360916119,1747144236704,-400.0,0.00013698,2]
[360916120,1747144236719,-400.0,0.00013698,2]
[360916121,1747144236730,-2040.06,0.00013698,2]
[360916122,1747144236740,-458.57,0.00013698,2]
[360916123,1747144236751,-4809.98,0.00013698,2]
[360916124,1747144236761,-400.0,0.00013698,2]
[360916125,1747144236772,-400.0,0.00013698,2]
[360916126,1747144236781,-400.0,0.00013698,2]
[360916127,1747144236791,-400.0,0.00013698,2]
[360916128,1747144236801,-400.0,0.00013698,2]
[360916129,1747144236811,-400.0,0.00013698,2]
[360916130,1747144236821,-400.0,0.00013698,2]
[360916131,1747144236831,-1800.13,0.00013698,2]
[360916132,1747144236841,-400.0,0.00013698,2]
[360916133,1747144236851,-1131.83,0.00013698,2]
[360916134,1747144236861,-1491.92,0.00013698,2]
[360916135,1747144236871,-400.0,0.00013698,2]
[360916136,1747144236885,-400.0,0.00013698,2]
[360916137,1747144236896,-259.47113853,0.00013698,2]
[360916138,1747144236907,-400.0,0.00013698,2]
[360916139,1747144236918,-400.0,0.00013698,2]
[360916140,1747144236928,-400.0,0.00013698,2]
[360916141,1747144236939,-825.85,0.00013698,2]
[360916142,1747144236950,-400.0,0.00013698,2]
[360916143,1747144236960,-183.22286375,0.00013698,2]
[360916144,1747144236970,-400.0,0.00013698,2]
[360916145,1747144236980,-400.0,0.00013698,2]
[360916146,1747144236990,-500.0,0.00013698,2]
[360916147,1747144237002,-400.0,0.00013698,2]
[360916148,1747144237012,-400.0,0.00013698,2]
[360916149,1747144237022,-734.68,0.00013698,2]
[360916150,1747144237032,-400.0,0.00013698,2]
[360916151,1747144237042,-858.78,0.00013698,2]
[360916152,1747144237051,-400.0,0.00013698,2]
[360916153,1747144237062,-400.0,0.00013698,2]
[360916154,1747144237071,-718.63,0.00013698,2]
[360916155,1747144237081,-400.0,0.00013698,2]
[360916156,1747144237091,-831.67,0.00013698,2]
[360916157,1747144237100,-400.0,0.00013698,2]
[360916158,1747144237110,-400.0,0.00013698,2]
[360916159,1747144237120,-400.0,0.00013698,2]
[360916160,1747144237131,-1317.86,0.00013698,2]
[360916161,1747144237141,-400.0,0.00013698,2]
[360916162,1747144237154,-927.86,0.00013698,2]
[360916163,1747144237164,-558.33,0.00013698,2]
[360916164,1747144237174,-1248.89,0.00013698,2]
[360916165,1747144237184,-400.0,0.00013698,2]
[360916166,1747144237194,-400.0,0.00013698,2]
[360916167,1747144237205,-400.0,0.00013698,2]
[360916168,1747144237215,-421.47,0.00013698,2]
[360916169,1747144237225,-400.0,0.00013698,2]
[360916170,1747144237235,-1671.35,0.00013698,2]
[360916171,1747144237244,-1115.62,0.00013698,2]
[360916172,1747144237254,-624.31,0.00013698,2]
[360916173,1747144237264,-761.5,0.00013698,2]
[360916174,1747144237274,-766.09,0.00013698,2]
[360916175,1747144237284,-476.49,0.00013698,2]
[360916176,1747144237294,-3456.25,0.00013698,2]
[360916177,1747144237303,-400.0,0.00013698,2]
[360916178,1747144237313,-400.0,0.00013698,2]
[360916179,1747144237323,-400.0,0.00013698,2]
[360916180,1747144237332,-459.07,0.00013698,2]
[360916181,1747144237342,-1442.56,0.00013698,2]
[360916182,1747144237352,-400.0,0.00013698,2]
[360916183,1747144237362,-400.71693786,0.00013698,2]
[360916184,1747144237371,-400.0,0.00013698,2]
[360916185,1747144237384,-652.77,0.00013698,2]
[360916186,1747144237393,-400.0,0.00013698,2]
[360916187,1747144237404,-400.0,0.00013698,2]
[360916188,1747144237414,-400.0,0.00013698,2]
[360916189,1747144237424,-2219.74,0.00013698,2]
[360916190,1747144237434,-400.0,0.00013698,2]
[360916191,1747144237444,-400.0,0.00013698,2]
[360916192,1747144237454,-322.12271749,0.00013698,2]
[360916193,1747144237464,-400.0,0.00013698,2]
[360916194,1747144237475,-2572.53,0.00013698,2]
[360916195,1747144237484,-400.0,0.00013698,2]
[360916196,1747144237494,-713.0,0.00013698,2]
[360916197,1747144237505,-400.0,0.00013698,2]
[360916198,1747144237515,-454.31,0.00013698,2]
[360916199,1747144237525,-2069.16,0.00013698,2]
[360916200,1747144237534,-1494.79,0.00013698,2]
[360916201,1747144237544,-721.44,0.00013698,2]
[360916202,1747144237554,-777.45,0.00013698,2]
[360916203,1747144237564,-262.06436117,0.00013698,2]
[360916204,1747144237574,-732.41,0.00013698,2]
[360916205,1747144237585,-728.31,0.00013698,2]
[360916206,1747144237595,-277.63856652,0.00013698,2]
[360916207,1747144237606,-431.91,0.00013698,2]
[360916208,1747144237616,-953.19,0.00013698,2]
[360916209,1747144237630,-2992.55,0.00013698,2]
[360916210,1747144237642,-400.0,0.00013698,2]
[360916211,1747144237652,-400.0,0.00013698,2]
[360916212,1747144237663,-400.0,0.00013698,2]
[360916213,1747144237673,-400.0,0.00013698,2]
[360916214,1747144237684,-400.0,0.00013698,2]
[360916215,1747144237694,-151.0,0.00013698,2]
[360916216,1747144237704,-400.0,0.00013698,2]
[360916217,1747144237714,-151.0,0.00013698,2]
[360916218,1747144237724,-400.0,0.00013698,2]
[360916219,1747144237735,-151.0,0.00013698,2]
[360916220,1747144237745,-151.0,0.00013698,2]
[360916221,1747144237755,-400.0,0.00013698,2]
[360916222,1747144237765,-400.0,0.00013698,2]
[360916223,1747144237775,-151.0,0.00013698,2]
[360916224,1747144237785,-158.378588,0.00013698,2]
[360916225,1747144237797,-475.51,0.00013698,2]
[360916226,1747144237807,-400.0,0.00013698,2]
[360916227,1747144237816,-578.35,0.00013698,2]
[360916228,1747144237826,-313.93562518,0.00013698,2]
[360916229,1747144237836,-700.27,0.00013698,2]
[360916230,1747144237846,-405.67,0.00013698,2]
[360916231,1747144237855,-400.7066527,0.00013698,2]
[360916232,1747144237865,-400.0,0.00013698,2]
[360916233,1747144237876,-400.0,0.00013698,2]
[360916234,1747144237888,-1272.76,0.00013698,2]
[360916235,1747144237898,-6764.06,0.00013698,2]
[360916236,1747144237908,-897.84,0.00013698,2]
[360916237,1747144237918,-400.0,0.00013698,2]
[360916238,1747144237928,-400.48,0.00013698,2]
[360916239,1747144237938,-2002.11,0.00013698,2]
[360916240,1747144237948,-759.68,0.00013698,2]
[360916241,1747144237958,-508.02,0.00013698,2]
[360916242,1747144237968,-400.0,0.00013698,2]
[360916243,1747144237977,-400.0,0.00013698,2]
[360916244,1747144237987,-240.89833585,0.00013698,2]
[360916245,1747144237997,-1131.22,0.00013698,2]
[360916246,1747144238008,-1492.63,0.00013698,2]
[360916247,1747144238018,-400.0,0.00013698,2]
[360916248,1747144238028,-1096.67,0.00013698,2]
[360916249,1747144238038,-238.65496286,0.00013698,2]
[360916250,1747144238048,-400.0,0.00013698,2]
[360916251,1747144238057,-400.0,0.00013698,2]
[360916252,1747144238067,-400.0,0.00013698,2]
[360916253,1747144238077,-400.0,0.00013698,2]
[360916254,1747144238087,-400.0,0.00013698,2]
[360916255,1747144238096,-400.0,0.00013698,2]
[360916256,1747144238105,-400.0,0.00013698,2]
[360916257,1747144238115,-400.0,0.00013698,2]
[360916258,1747144238125,-151.0,0.00013698,2]
[360916259,1747144238137,-151.0,0.00013698,2]
[360916260,1747144238147,-151.0,0.00013698,2]
[360916261,1747144238159,-151.0,0.00013698,2]
[360916262,1747144238169,-151.0,0.00013698,2]
[360916264,1747144238179,-151.0,0.00013698,2]
[360916265,1747144238188,-151.0,0.00013698,2]
[360916266,1747144238199,-400.0,0.00013698,2]
[360916267,1747144238208,-400.0,0.00013698,2]
[360916268,1747144238218,-327.16086463,0.00013698,2]
[360916269,1747144238229,-400.0,0.00013698,2]
[360916271,1747144238238,-400.0,0.00013698,2]
[360916273,1747144238248,-1750.3,0.00013698,2]
[360916274,1747144238259,-2273.71,0.00013698,2]
[360916275,1747144238269,-400.0,0.00013698,2]
[360916276,1747144238279,-400.0,0.00013698,2]
[360916277,1747144238289,-400.0,0.00013698,2]
[360916278,1747144238299,-400.96524486,0.00013698,2]
[360916279,1747144238310,-151.0,0.00013698,2]
[360916280,1747144238320,-547.08,0.00013698,2]
[360916281,1747144238331,-151.0,0.00013698,2]
[360916282,1747144238341,-151.0,0.00013698,2]
[360916283,1747144238351,-151.0,0.00013698,2]
[360916284,1747144238360,-151.0,0.00013698,2]
[360916285,1747144238370,-400.0,0.00013698,2]
[360916286,1747144238381,-151.0,0.00013698,2]
[360916287,1747144238391,-151.0,0.00013698,2]
[360916288,1747144238400,-482.88,0.00013698,2]
[360916289,1747144238413,-400.0,0.00013698,2]
[360916291,1747144238423,-400.0,0.00013698,2]
[360916293,1747144238432,-151.0,0.00013698,2]
[360916295,1747144238442,-151.0,0.00013698,2]
[360916297,1747144238451,-151.0,0.00013698,2]
[360916299,1747144238461,-151.0,0.00013698,2]
[360916301,1747144238471,-151.0,0.00013698,2]
[360916303,1747144238480,-400.0,0.00013698,2]
[360916304,1747144238490,-151.0,0.00013698,2]
[360916306,1747144238500,-3354.27,0.00013698,2]
[360916307,1747144238510,-151.0,0.00013698,2]
[360916309,1747144238520,-400.0,0.00013698,2]
[360916310,1747144238529,-583.08,0.00013698,2]
[360916311,1747144238540,-400.0,0.00013698,2]
[360916312,1747144238551,-656.46,0.00013698,2]
[360916313,1747144238560,-400.0,0.00013698,2]
[360916314,1747144238570,-400.0,0.00013698,2]
[360916315,1747144238580,-786.16,0.00013698,2]
[360916316,1747144238590,-400.0,0.00013698,2]
[360916318,1747144238599,-571.21,0.00013698,2]
[360916319,1747144238609,-400.0,0.00013698,2]
[360916320,1747144238619,-770.02,0.00013698,2]
[360916321,1747144238629,-203.88889079,0.00013698,2]
[360916322,1747144238639,-413.48,0.00013698,2]
[360916323,1747144238648,-400.0,0.00013698,2]
[360916324,1747144238658,-400.0,0.00013698,2]
[360916325,1747144238667,-1105.81,0.00013698,2]
[360916326,1747144238677,-400.0,0.00013698,2]
[360916327,1747144238687,-230.80999399,0.00013698,2]
[360916328,1747144238697,-2738.3,0.00013698,2]
[360916329,1747144238708,-490.89,0.00013698,2]
[360916330,1747144238718,-400.0,0.00013698,2]
[360916331,1747144238727,-501.19424882,0.00013698,2]
[360916332,1747144238737,-1349.14,0.00013698,2]
[360916333,1747144238747,-496.59,0.00013698,2]
[360916334,1747144238757,-400.0,0.00013698,2]